{"text_format":"3","workbook":"xlsx","n_sheets":3,"sheets":["Foglio1","Foglio2","Foglio3"],"read":"whole","date_system":"1900"}

{"sheet":"Foglio1","index":0,"n_rows":63,"n_cols":4,"rows_kept":63,"merged":[[0,0,0,3]]}
["CONTI ECONOMICI TRIENNIO 2015/2017"]
[]
[]
["RICAVI","ANNO 2015","ANNO 2016","ANNO 2017"]
["Stato"]
["Provincia di riferimento"]
["Comune di riferimento - settore spettacolo e/o comunità montane"]
["Comune di riferimento - altri settori "]
["Unione Europea"]
["Altri soggetti pubblici"]
["TOTALE Proventi da contributi pubblici",{"$f":"SUM(B5:B10)","v":{"v":0,"d":"0.00"}},{"$f":"SUM(C5:C10)","v":{"v":0,"d":"0.00"}},{"$f":"SUM(D5:D10)","v":{"v":0,"d":"0.00"}}]
["Fondazioni Bancarie"]
["Altri soggetti privati"]
["TOTALE Proventi da contributi privati",{"$f":"SUM(B12:B13)","v":{"v":0,"d":"0.00"}},{"$f":"SUM(C12:C13)","v":{"v":0,"d":"0.00"}},{"$f":"SUM(D12:D13)","v":{"v":0,"d":"0.00"}}]
["Incassi attività di produzione in sede "]
["Incassi delle attività di produzione fuori dalla sede (a cachet e a percentuale)"]
["Incassi per attività di ospitalità"]
["TOTALE Ricavi da attività tipiche",{"$f":"SUM(B15:B17)","v":{"v":0,"d":"0.00"}},{"$f":"SUM(C15:C17)","v":{"v":0,"d":"0.00"}},{"$f":"SUM(D15:D17)","v":{"v":0,"d":"0.00"}}]
["Incassi per attività non tipiche, collaterali e integrative (scuole, laboratori, merchandising, noleggi e cessioni di diritti, altro), affitti attivi"]
["Affitti della sala a terzi, vendita di servizi"]
["incassi per servizi di prevendita"]
["Proventi diversi (bar, guardaroba, etc.)"]
["TOTALE Ricavi da attività non tipiche",{"$f":"SUM(B19:B22)","v":{"v":0,"d":"0.00"}},{"$f":"SUM(C19:C22)","v":{"v":0,"d":"0.00"}},{"$f":"SUM(D19:D22)","v":{"v":0,"d":"0.00"}}]
["ALTRO: Quote associative, offerte, erogazioni e liberalità, donazioni"]
["TOTALE",{"$f":"B11+B14+B18+B23+B24","v":{"v":0,"d":"0.00"}},{"$f":"C11+C14+C18+C23+C24","v":{"v":0,"d":"0.00"}},{"$f":"SUM(D11+D14+D18+D23+D24)","v":{"v":0,"d":"0.00"}}]
[]
["COSTI","ANNO 2015","ANNO 2016","ANNO 2017"]
["Costi di allestimento e riallestimento (scene, costumi, attrezzeria e tecnologiche) "]
["Costi per la circuitazione delle produzioni (trasporti, viaggi, logistica, altro)"]
["Diritti, royalties e altri costi di produzione"]
["TOTALE Costi per la produzione",{"$f":"SUM(B28+B29+B30)","v":{"v":0,"d":"0.00"}},{"$f":"SUM(C28+C29+C30)","v":{"v":0,"d":"0.00"}},{"$f":"SUM(D28+D29+D30)","v":{"v":0,"d":"0.00"}}]
["Costi per ospitalità: compensi alle compagnie e alle iniziative ospitate"]
["Compensi al personale artistico (autonomo e dipendente)"]
["Compensi al personale tecnico (compreso il personale di sala)"]
["Compensi al personale organizzativo e amministrativo "]
["Oneri previdenziali, assistenziali e assicurativi a carico dell'impresa "]
["TOTALE Costi del personale",{"$f":"SUM(B33+B34+B35+B36)","v":{"v":0,"d":"0.00"}},{"$f":"SUM(C33+C34+C35+C36)","v":{"v":0,"d":"0.00"}},{"$f":"SUM(D33+D34+D36)","v":{"v":0,"d":"0.00"}}]
["Diritti d'autore - SIAE"]
["Costi per le dotazioni di sala e di palcoscenico"]
["Pulizie e altri servizi (se il servizio è esternalizzato)"]
["Spese di manutenzione ordinaria e energetiche"]
["TOTALE Costi di gestione",{"$f":"SUM(B39+B40+B41)","v":{"v":0,"d":"0.00"}},{"$f":"SUM(C39+C40+C41)","v":{"v":0,"d":"0.00"}},{"$f":"SUM(D39+D40+D41)","v":{"v":0,"d":"0.00"}}]
["Manifesti, locandine, programmi di sala, materiali stampati"]
["Spese postali e costi di distribuzione del materiale"]
["Gestione sito internet, comunicazione multimediale, fotografie, video, etc."]
["Spazi pubblicitari (giornali, televisione, radio etc.)"]
["Altri costi di promozione e comunicazione"]
["TOTALE Costi di promozione e comunicazione",{"$f":"SUM(B43+B44+B45+B46+B47)","v":{"v":0,"d":"0.00"}},{"$f":"SUM(C43+C44+C45+C46+C47)","v":{"v":0,"d":"0.00"}},{"$f":"SUM(D43+D44+D45+D46+D47)","v":{"v":0,"d":"0.00"}}]
["Canoni di locazione sala"]
["Canoni locazione uffici (se separati)"]
["Costi per magazzini, sala prove, servizi aggiuntivi"]
["Costi di manutenzione straordinaria e quote di ammortamento lavori pluriennali"]
["Costi per utenze (telefono, canoni amministrativi, consulenze per funzionamento)"]
["Attrezzature, arredi e altro materiale ufficio e quote ammortamento costi pluriennali"]
["Consulenze legali, fiscali e del lavoro"]
["Oneri finanziari (Interessi passivi e finanziari, Oneri bancari)"]
["TOTALE Spese generali amministrative",{"$f":"SUM(B49+B50+B51+B52+B53+B54+B55)","v":{"v":0,"d":"0.00"}},{"$f":"SUM(C49+C50+C51+C52+C53+C54+C55)","v":{"v":0,"d":"0.00"}},{"$f":"SUM(D49+D50+D51+D52+D53+D54+D55)","v":{"v":0,"d":"0.00"}}]
["TOTALE",{"$f":"SUM(B31+B32+B37+B38+B42+B48+B56+B57)","v":{"v":0,"d":"0.00"}},{"$f":"SUM(C31+C32+C37+C38+C42+C48+C56+C57)","v":{"v":0,"d":"0.00"}},{"v":0,"d":"0.00"}]
[]
[null,"ANNO 2015","ANNO 2016","ANNO 2017"]
["TOTALE RICAVI",{"$f":"B25","v":{"v":0,"d":"0.00"}},{"$f":"C25","v":{"v":0,"d":"0.00"}},{"$f":"D25","v":{"v":0,"d":"0.00"}}]
["TOTALE COSTI",{"$f":"B58","v":{"v":0,"d":"0.00"}},{"$f":"C58","v":{"v":0,"d":"0.00"}},{"$f":"D58","v":{"v":0,"d":"0.00"}}]
["AVANZO/DISAVANZO",{"$f":"B61-B62","v":{"v":0,"d":"0.00"}},{"$f":"C61-C62","v":{"v":0,"d":"0.00"}},{"$f":"D61-D62","v":{"v":0,"d":"0.00"}}]

{"sheet":"Foglio2","index":1,"n_rows":0,"n_cols":0,"rows_kept":0}

{"sheet":"Foglio3","index":2,"n_rows":0,"n_cols":0,"rows_kept":0}